bitfinex-derivatives/quotes_SOLF0:USTF0_20260123
["timestamp","ask_amount","ask_price","bid_price","bid_amount"]
[1769177317264,10.3649157,126.99,126.94,2.11992963]
[1769177317665,3.2682157,126.98,126.94,2.11992963]
[1769177318671,7.0967,126.99,126.96,2.11992963]
[1769177318876,3.2682157,127.0,126.96,2.11992963]
[1769177319075,7.096,127.01,126.96,2.11992963]
[1769177319076,7.096,127.01,126.98,2.11992963]
[1769177320971,3.2682157,127.0,126.98,2.11992963]
[1769177321170,3.2682157,127.0,126.97,2.11992963]
[1769177325378,10.3633157,127.02,126.97,2.11992963]
[1769177325578,3.2682157,127.05,126.99,2.11992963]
[1769177325878,9.07698195,127.04,126.99,2.11992963]
[1769177326178,110.3382,127.06,126.99,2.11992963]
[1769177326179,9.07698195,127.03,126.99,2.11992963]
[1769177326372,3.2682157,127.03,126.99,2.11992963]
[1769177326673,3.2682157,127.03,126.97,3.27508033]
[1769177326876,3.2682157,127.03,126.97,5.39500996]
[1769177327877,7.0956,127.01,126.97,5.39500996]
[1769177337285,3.2682157,127.02,126.97,5.39500996]
[1769177340590,3.2682157,127.04,127.01,2.11992963]
[1769177341987,3.2682157,127.04,126.99,10.37168033]
[1769177342289,3.2682157,127.04,127.0,2.11992963]
[1769177342593,3.2682157,127.04,127.0,9.21592963]
[1769177345792,3.2682157,127.04,127.0,7.096]
[1769177347181,3.2682157,127.04,127.01,7.0955]
[1769177355802,3.2682157,127.04,126.99,10.37118033]
[1769177355998,3.37470074,127.06,127.0,3.33816522]
[1769177356997,3.37470074,127.06,127.0,10.43406522]
[1769177358502,3.37470074,127.05,127.0,10.43406522]
[1769177361802,311.47100811,127.11,127.03,3.33816522]
[1769177362096,3.37470074,127.11,127.06,2.11992963]
[1769177362303,3.37470074,127.11,127.06,5.45809485]
[1769177362799,3.37470074,127.11,127.06,3.33816522]
[1769177363795,3.37470074,127.11,127.06,10.43086522]
[1769177364001,3.37470074,127.11,127.06,12.55079485]
[1769177367603,3.37470074,127.13,127.07,10.43036522]
[1769177367901,3.37470074,127.13,127.08,3.33816522]
[1769177368303,3.37470074,127.12,127.06,3.33816522]
[1769177369908,3.37470074,127.12,127.06,10.43096522]
[1769177376014,3.37470074,127.12,127.07,3.17797774]
[1769177377412,3.37506917,127.11,127.06,7.0928]
[1769177377612,3.37506917,127.1,127.05,10.27127774]
[1769177378210,3.37506917,127.1,127.06,7.0927]
[1769177378407,2.17398543,127.11,127.06,10.27067774]
[1769177378918,0.0540558,127.11,127.07,3.17797774]
[1769177379212,0.0540558,127.11,127.07,10.27017774]
[1769177385513,0.0540558,127.11,127.08,10.26957774]
[1769177396144,0.0540558,127.11,127.08,3.17797774]
[1769177398343,0.0540558,127.11,127.08,10.26957774]
[1769177399050,2.11583094,127.13,127.09,3.17797774]
[1769177402845,3.49132436,127.12,127.07,10.47413978]
[1769177403341,3.49132436,127.12,127.08,3.38203978]
[1769177404152,9.20473094,127.13,127.08,3.38203978]
[1769177406554,12.53203211,127.13,127.08,3.38203978]
[1769177409861,5.44313211,127.13,127.08,10.47353978]
[1769177411256,3.32730117,127.13,127.08,10.47353978]
[1769177412663,5.86816141,127.14,127.09,3.33342189]
[1769177412958,16.28386258,127.14,127.09,3.33342189]
[1769177413160,10.41570117,127.14,127.09,3.33342189]
[1769177413358,3.32730117,127.14,127.09,3.33342189]
[1769177413747,9.19509861,127.14,127.09,3.33342189]
[1769177413959,3.32730117,127.14,127.09,3.33342189]
[1769177414254,9.19509861,127.14,127.09,3.33342189]
[1769177426163,3.32730117,127.16,127.1,3.33342189]
[1769177426667,3.32730117,127.15,127.1,3.33342189]
[1769177429570,5.8493745,127.16,127.12,3.33342189]
[1769177429869,3.32730117,127.17,127.12,3.33342189]
[1769177431076,9.17507398,127.17,127.12,3.33342189]
[1769177434686,16.26187398,127.17,127.12,3.33342189]
[1769177434887,3.22785826,127.16,127.1,3.2496823]
[1769177435087,2.11583094,127.17,127.1,3.2496823]
[1769177435088,3.22785826,127.15,127.1,3.2496823]
[1769177436279,3.22785826,127.14,127.08,3.2496823]
[1769177437590,3.27756608,127.12,127.06,3.2496823]
[1769177437977,3.22785826,127.12,127.06,3.2496823]
[1769177438988,0.0497923,127.1,127.06,3.2496823]
[1769177446198,0.0497923,127.1,127.06,10.3423823]
[1769177447198,0.0497923,127.1,127.07,3.2496823]
[1769177448601,3.22785826,127.12,127.07,10.39547548]
[1769177448994,5.34368423,127.16,127.09,3.2496823]
[1769177449699,3.22785826,127.15,127.09,3.2496823]
[1769177449901,3.22785826,127.15,127.1,7.0904]
[1769177453810,3.22785826,127.15,127.09,3.2496823]
[1769177457116,3.22785826,127.17,127.09,3.2496823]
[1769177457412,10.31435826,127.18,127.13,3.2496823]
[1769177458307,10.31455826,127.17,127.13,3.2496823]
[1769177460811,10.31455826,127.17,127.11,5.36550827]
[1769177461011,10.31455826,127.17,127.12,3.2496823]
[1769177464506,7.0873,127.16,127.12,3.2496823]
[1769177471925,3.22785826,127.17,127.12,3.2496823]
[1769177472817,3.22785826,127.17,127.12,5.36550827]
[1769177473018,10.31475826,127.17,127.12,5.36550827]
[1769177474323,10.31475826,127.17,127.12,3.2496823]
[1769177476433,7.0873,127.16,127.12,3.2496823]
[1769177477336,10.30210635,127.16,127.12,3.2496823]
[1769177479236,9.20252597,127.17,127.12,3.2496823]
[1769177479429,12.41733232,127.17,127.12,3.2496823]
[1769177482537,5.33063232,127.17,127.12,3.2496823]
[1769177484137,3.21480635,127.16,127.1,3.32676866]
[1769177484346,3.21480635,127.14,127.08,10.41796866]
[1769177491550,5.30952355,127.13,127.08,3.32676866]
[1769177491850,3.19369758,127.12,127.07,7.0922]
[1769177492046,10.28319758,127.12,127.06,3.41834017]
[1769177493951,10.28319758,127.12,127.07,7.0921]
[1769177494953,10.28319758,127.12,127.07,10.33794095]
[1769177495251,3.19369758,127.12,127.07,10.33794095]
[1769177495950,9.20472597,127.13,127.08,3.24584095]
[1769177499553,3.2290116,127.14,127.08,10.33724095]
[1769177499758,3.2290116,127.14,127.08,3.24584095]
[1769177501151,10.3174116,127.14,127.09,7.0911]
[1769177501357,10.3174116,127.14,127.08,3.24584095]
[1769177502059,2.115038,127.15,127.05,110.3379]
[1769177502060,3.2290116,127.12,127.06,10.33814095]
[1769177502258,5.3440496,127.11,127.06,10.33814095]
[1769177502659,5.3440496,127.11,127.07,7.092]
[1769177503155,5.3440496,127.13,127.07,3.24584095]
[1769177503655,5.3440496,127.13,127.08,10.33744095]
[1769177506558,5.3440496,127.13,127.08,3.24584095]
[1769177506762,3.2290116,127.12,127.07,7.0922]
[1769177507764,3.2290116,127.12,127.07,10.33804095]
[1769177509265,3.2290116,127.12,127.07,3.24584095]
[1769177511366,3.2290116,127.1,127.05,3.24584095]
[1769177512875,10.3198116,127.1,127.05,3.24584095]
[1769177515468,3.2290116,127.08,127.03,3.24584095]
[1769177516277,10.3209116,127.08,127.03,3.24584095]
[1769177517273,3.2290116,127.08,127.03,3.24584095]
[1769177518378,5.3440496,127.1,127.04,3.24584095]
[1769177519681,3.2290116,127.1,127.04,3.24584095]
[1769177521282,3.2290116,127.1,127.04,10.33974095]
[1769177521482,3.2290116,127.1,127.05,3.24584095]
[1769177523186,3.47682357,127.12,127.06,3.22651533]
[1769177523378,3.47682357,127.12,127.07,2.115038]
[1769177524878,3.47682357,127.12,127.07,9.207038]
[1769177526882,3.47682357,127.12,127.07,12.47788735]
[1769177528979,12.68405189,127.14,127.08,3.27084935]
[1769177529178,12.68405189,127.14,127.08,10.36244935]
[1769177529404,5.59515189,127.14,127.08,10.36244935]
[1769177530391,3.48011389,127.14,127.08,10.36244935]
[1769177532978,3.48011389,127.14,127.09,3.27084935]
[1769177533182,3.48011389,127.14,127.09,5.38588735]
[1769177534991,7.0878,127.15,127.1,3.27084935]
[1769177535195,5.59515189,127.16,127.1,3.27084935]
[1769177535395,5.81407165,127.15,127.1,3.27084935]
[1769177535892,5.81407165,127.15,127.1,10.36134935]
[1769177536391,0.05485532,127.14,127.11,0.05619814]
[1769177540892,0.05485532,127.14,127.11,12.53188549]
[1769177541589,5.81407165,127.15,127.12,3.27084935]
[1769177541796,3.48011389,127.18,127.12,10.36014935]
[1769177542996,3.48011389,127.18,127.14,0.05798177]
[1769177548894,3.48011389,127.2,127.14,3.32883112]
[1769177549096,3.48011389,127.2,127.14,5.44386912]
[1769177550102,3.48011389,127.2,127.15,7.0877]
[1769177550296,3.48011389,127.2,127.14,5.44386912]
[1769177551195,3.48011389,127.2,127.14,3.32883112]
[1769177554703,5.45228538,127.19,127.14,0.05798177]
[1769177554909,3.33724738,127.18,127.14,0.05798177]
[1769177555209,3.33724738,127.18,127.12,3.4603141]
[1769177555609,3.33724738,127.18,127.15,0.05012346]
[1769177556104,3.33724738,127.18,127.12,10.5496141]
[1769177556411,10.42334738,127.18,127.12,10.5496141]
[1769177557007,10.42334738,127.18,127.13,3.4603141]
[1769177559507,7.0871,127.17,127.13,3.4603141]
[1769177561218,3.33724738,127.18,127.13,3.4603141]
[1769177564016,3.33724738,127.18,127.13,7.0888]
[1769177564216,3.33724738,127.18,127.12,3.4603141]
[1769177565906,3.33724738,127.18,127.12,10.5497141]
[1769177574923,3.33724738,127.18,127.13,7.0889]
[1769177575313,3.33724738,127.18,127.12,3.4603141]
[1769177575520,3.33724738,127.18,127.13,3.4603141]
[1769177577127,3.33724738,127.18,127.12,7.0894]
[1769177577826,5.45089479,127.17,127.12,7.0894]
[1769177578326,5.45089479,127.17,127.12,10.5497141]
[1769177579020,3.33724738,127.17,127.13,3.4603141]
[1769177579227,12.53659479,127.19,127.13,3.4603141]
[1769177579428,12.53659479,127.19,127.13,10.5491141]
[1769177582936,3.33724738,127.19,127.14,10.47410279]
[1769177585531,12.53649479,127.19,127.14,3.38580279]
[1769177586534,3.24219879,127.18,127.12,7.0892]
[1769177586833,3.24219879,127.18,127.13,3.23680166]
[1769177587529,10.32829879,127.18,127.13,3.23680166]
[1769177591136,3.24219879,127.18,127.13,3.23680166]
[1769177591739,3.24219879,127.16,127.1,3.23680166]
[1769177592033,3.24219879,127.15,127.1,3.23680166]
[1769177592229,10.32999879,127.15,127.1,3.23680166]
[1769177592929,3.24219879,127.15,127.1,3.23680166]
[1769177596937,3.24219879,127.13,127.08,10.32820166]
[1769177602133,3.24219879,127.13,127.08,7.0914]
[1769177602333,5.3558462,127.12,127.06,3.23680166]
[1769177603851,12.4453462,127.12,127.06,10.32950166]
[1769177606146,3.24219879,127.11,127.06,10.32950166]
[1769177609548,3.24219879,127.11,127.06,3.23680166]
[1769177610352,5.3558462,127.11,127.06,3.23680166]
[1769177610748,12.4459462,127.11,127.06,3.23680166]
[1769177610947,3.24219879,127.1,127.06,3.23680166]
[1769177611148,3.24219879,127.1,127.04,3.23680166]
[1769177611357,10.33279879,127.1,127.04,3.23680166]
[1769177611548,3.24219879,127.1,127.05,3.23680166]
[1769177613046,3.24219879,127.1,127.05,10.33010166]
[1769177614152,10.38180589,127.12,127.06,3.42272751]
[1769177614359,10.38180589,127.12,127.07,3.42272751]
[1769177614657,3.29230589,127.12,127.07,3.42272751]
[1769177615560,9.20254741,127.13,127.08,3.42272751]
[1769177616157,12.4948533,127.13,127.08,3.42272751]
[1769177622866,10.38120589,127.13,127.08,3.42272751]
[1769177625266,7.0883,127.14,127.09,3.42272751]
[1769177632859,10.38060589,127.14,127.09,3.42272751]
[1769177640372,3.29230589,127.14,127.09,10.51382751]
[1769177640677,3.29230589,127.16,127.1,3.42272751]
[1769177640973,16.27150195,127.15,127.1,10.51322751]
[1769177641170,10.38010589,127.15,127.1,10.51322751]
[1769177641473,10.38010589,127.15,127.1,3.42272751]
[1769177642668,16.54809746,127.14,127.08,3.67279332]
[1769177642868,10.65575333,127.14,127.08,3.67279332]
[1769177643876,10.65575333,127.14,127.08,10.76439332]
[1769177645072,3.56745333,127.13,127.08,10.76439332]
[1769177648287,3.56745333,127.13,127.09,7.091]
[1769177660794,3.56745333,127.13,127.08,10.76439332]
[1769177672902,10.65645333,127.13,127.08,3.67279332]
[1769177673795,5.91513983,127.12,127.08,3.67279332]
[1769177674100,10.65645333,127.13,127.08,3.67279332]
[1769177674301,5.91605203,127.12,127.08,3.67279332]
[1769177674602,10.65645333,127.13,127.08,3.67279332]
[1769177674790,5.91566345,127.12,127.08,3.67279332]
[1769177674998,10.65645333,127.13,127.08,3.67279332]
[1769177675300,5.91564445,127.12,127.08,3.67279332]
[1769177678304,10.65645333,127.13,127.08,3.67279332]
[1769177678608,9.15045659,127.12,127.07,9.20752991]
[1769177678908,3.23442217,127.12,127.07,12.6045501]
[1769177684907,3.23442217,127.12,127.07,10.48912019]
[1769177685109,10.32392217,127.12,127.07,3.39702019]
[1769177688404,3.23442217,127.11,127.07,3.39702019]
[1769177688611,10.32462217,127.11,127.05,3.39702019]
[1769177689910,10.32462217,127.11,127.05,10.49032019]
[1769177690411,10.32462217,127.11,127.06,3.39702019]
[1769177695215,3.23442217,127.11,127.06,3.39702019]
[1769177695513,3.23442217,127.13,127.07,3.39702019]
[1769177695713,5.91404318,127.12,127.07,3.39702019]
[1769177696921,5.91404318,127.12,127.07,10.48912019]
[1769177697918,9.14846535,127.12,127.07,10.48912019]
[1769177698119,3.23442217,127.12,127.07,10.48912019]
[1769177701025,10.32392217,127.12,127.07,3.39702019]
[1769177702229,3.23442217,127.12,127.07,3.39702019]
[1769177703829,3.2410202,127.11,127.06,7.0927]
[1769177706523,3.20410896,127.09,127.05,7.0933]
[1769177706730,3.20410896,127.09,127.03,3.31845226]
[1769177707927,10.29530896,127.09,127.03,10.41285226]
[1769177708720,12.41073328,127.09,127.03,10.41285226]
[1769177709231,12.41073328,127.09,127.04,3.31845226]
[1769177715724,3.20410896,127.08,127.04,3.31845226]
[1769177716632,3.20410896,127.08,127.03,7.0944]
[1769177720226,3.20410896,127.08,127.04,7.0939]
[1769177720430,3.20410896,127.08,127.04,10.41235226]
[1769177720733,3.20410896,127.08,127.04,3.31845226]
[1769177721535,3.20410896,127.08,127.05,7.0933]
[1769177722739,9.20592432,127.11,127.05,7.0933]
[1769177724942,3.20410896,127.1,127.05,7.0933]
[1769177726139,10.29480896,127.1,127.05,7.0933]
[1769177726339,3.20410896,127.09,127.05,7.0933]
[1769177727846,3.20410896,127.09,127.04,3.31845226]
[1769177728146,3.20410896,127.09,127.04,10.41225226]
[1769177728341,3.20410896,127.08,127.04,10.41225226]
[1769177728650,3.20410896,127.08,127.03,7.0941]
[1769177729241,5.31953328,127.07,127.02,3.31845226]
[1769177730348,12.41173328,127.07,127.02,3.31845226]
[1769177730748,3.20410896,127.06,127.02,3.31845226]
[1769177731041,3.20410896,127.06,127.0,3.31845226]
[1769177731945,3.20410896,127.06,127.0,10.41455226]
[1769177735443,3.20410896,127.06,127.01,10.40668986]
[1769177735644,10.39504422,127.08,127.02,3.31108986]
[1769177735839,3.30334422,127.12,127.04,3.31108986]
[1769177736045,9.2233021,127.11,127.04,3.31108986]
[1769177736246,3.30334422,127.11,127.04,3.31108986]
[1769177737047,10.39444422,127.09,127.04,3.31108986]
[1769177738049,10.39504422,127.08,127.02,10.40608986]
[1769177741158,3.30334422,127.07,127.02,10.40608986]
[1769177741358,10.39554422,127.07,127.02,3.31108986]
[1769177741654,3.30334422,127.06,127.01,7.0956]
[1769177741960,3.30334422,127.06,127.0,3.31108986]
[1769177742253,3.30334422,127.05,127.0,3.31108986]
[1769177742456,3.30334422,127.05,126.98,192.43104574]
[1769177742646,10.39724422,127.04,126.98,192.43104574]
[1769177743757,10.39724422,127.04,126.98,3.31108986]
[1769177745563,10.39794422,127.03,126.97,7.0978]
[1769177746061,10.39794422,127.03,126.97,10.40888986]
[1769177747364,3.30334422,127.03,126.97,10.40888986]
[1769177750861,3.30334422,127.03,126.98,12.52691413]
[1769177751158,3.30334422,127.05,127.0,5.42971413]
[1769177751760,3.30334422,127.07,127.01,3.31108986]
[1769177752061,3.30334422,127.09,127.02,2.11862427]
[1769177752262,3.30334422,127.07,127.0,5.42971413]
[1769177752467,3.30334422,127.07,127.03,0.05046869]
[1769177752963,3.30334422,127.06,127.0,12.52581413]
[1769177753163,3.35780376,127.06,127.0,12.52581413]
[1769177756169,3.30334422,127.05,127.0,12.52581413]
[1769177756373,3.30334422,127.05,126.98,12.52661413]
[1769177756868,10.39724422,127.04,126.98,12.52661413]
[1769177757265,0.05111257,127.03,126.98,12.52661413]
[1769177759075,0.05111257,127.03,126.98,10.40798986]
[1769177759372,0.05111257,127.03,126.98,12.52661413]
[1769177761472,3.35445679,127.03,126.98,3.31108986]
[1769177761667,3.30334422,127.02,126.96,5.42971413]
[1769177761869,3.30334422,127.01,126.96,3.31108986]
[1769177762675,0.05915991,127.0,126.96,3.31108986]
[1769177764377,3.31630671,127.03,126.97,3.51581088]
[1769177764870,3.31630671,127.03,126.97,3.46081283]
[1769177766470,10.41090671,127.03,126.97,3.46081283]
[1769177769679,10.41090671,127.03,126.97,10.55861283]
[1769177770781,3.29009749,127.05,126.99,3.3509398]
[1769177771482,3.29009749,127.05,127.0,7.0961]
[1769177771981,3.29009749,127.05,126.99,3.3509398]
[1769177772476,10.38349749,127.05,126.99,3.3509398]
[1769177772670,10.38349749,127.05,127.0,5.46956407]
[1769177774281,10.38349749,127.05,127.0,3.3509398]
[1769177775477,3.29009749,127.05,127.0,12.56556407]
[1769177777482,7.0928,127.06,127.01,3.3509398]
[1769177778776,7.0922,127.08,127.03,3.3509398]
[1769177779173,3.29009749,127.09,127.03,3.3509398]
[1769177779578,10.38119749,127.09,127.03,3.3509398]
[1769177781282,10.38119749,127.09,127.05,0.05395946]
[1769177787287,3.29009749,127.09,127.05,0.05395946]
[1769177797997,3.29009749,127.09,127.05,7.14725946]
[1769177801795,3.18057995,127.11,127.07,7.0921]
[1769177801995,281.03125958,127.13,127.06,3.26529331]
[1769177802997,3.18057995,127.13,127.06,3.26529331]
[1769177803300,3.18057995,127.13,127.09,7.091]
[1769177804987,3.18057995,127.13,127.1,0.04999132]
[1769177806095,3.23086543,127.13,127.1,0.04999132]
[1769177807601,5.34612547,127.13,127.1,0.04999132]
[1769177811405,3.23086543,127.13,127.1,0.04999132]
[1769177812502,3.23086543,127.13,127.06,2.11526004]
[1769177812703,3.18057995,127.11,127.06,2.11526004]
[1769177813302,3.18057995,127.11,127.07,7.0922]
[1769177814006,0.05369229,127.1,127.07,7.0922]
[1769177820211,0.05369229,127.1,127.06,3.26529331]
[1769177821004,0.05369229,127.1,127.06,5.38055335]
[1769177821911,0.05369229,127.1,127.07,7.092]
[1769177822409,3.58692551,127.1,127.03,3.51174879]
[1769177822616,3.58692551,127.1,127.04,3.51174879]
[1769177822911,3.58692551,127.1,127.06,7.0923]
[1769177823208,0.05369229,127.1,127.06,7.0923]
[1769177823413,0.05369229,127.1,127.06,10.60404879]
[1769177823613,0.05369229,127.1,127.07,10.60384879]
[1769177823817,5.47395648,127.12,127.07,10.60384879]
[1769177824016,5.47395648,127.12,127.07,10.65699805]
[1769177824919,3.35869644,127.14,127.08,10.60324879]
[1769177825710,3.35869644,127.14,127.1,0.05360263]
[1769177826612,10.44719644,127.14,127.1,0.05360263]
[1769177826813,3.23235183,127.13,127.08,10.60324879]
[1769177827117,3.28908707,127.13,127.08,10.60324879]
[1769177828017,3.28908707,127.13,127.08,3.51174879]
[1769177828413,3.28908707,127.13,127.05,3.37193178]
[1769177828619,3.23235183,127.11,127.06,7.0927]
[1769177829312,0.05265317,127.1,127.06,7.0927]
[1769177830820,0.05265317,127.1,127.06,10.46463178]
[1769177831321,0.05265317,127.1,127.07,10.46413178]
[1769177831718,3.23235183,127.13,127.08,7.0916]
[1769177832422,5.88708432,127.12,127.08,7.0916]
[1769177833424,3.23235183,127.15,127.09,3.37193178]
[1769177833612,2.11526004,127.11,127.06,3.37193178]
[1769177834513,3.23235183,127.1,127.04,3.37193178]
[1769177835617,2.11526004,127.09,127.04,3.37193178]
[1769177836125,2.11526004,127.09,127.04,10.46533178]
[1769177837330,2.11526004,127.09,127.04,3.37193178]
[1769177838733,2.11526004,127.09,127.05,0.05026639]
[1769177839120,10.32285183,127.1,127.05,0.05026639]
[1769177839324,3.23235183,127.1,127.05,3.42219817]
[1769177843626,3.23235183,127.08,127.02,3.37193178]
[1769177844732,10.32425183,127.08,127.02,3.37193178]
[1769177845120,0.05439932,127.06,127.02,3.37193178]
[1769177845523,7.0919,127.08,127.04,3.37193178]
[1769177845726,7.0911,127.09,127.04,3.37193178]
[1769177850234,3.23235183,127.1,127.04,3.37193178]
[1769177850832,7.0904,127.11,127.05,3.37193178]
[1769177851029,7.0904,127.11,127.06,0.05016104]
[1769177851629,10.32275183,127.11,127.06,0.05016104]
[1769177854228,7.0894,127.12,127.06,3.4930396]
[1769177855741,10.50791835,127.13,127.07,5.5581386]
[1769177856435,10.50791835,127.13,127.07,12.6503386]
[1769177856635,10.50791835,127.13,127.09,0.05182512]
[1769177857237,5.88919076,127.12,127.09,0.05182512]
[1769177858348,10.50791835,127.13,127.09,0.05182512]
[1769177861851,3.41901835,127.13,127.09,0.05182512]
[1769177865153,10.50681835,127.15,127.09,5.60996372]
[1769177865348,5.88647655,127.14,127.09,5.60996372]
[1769177865750,9.3054949,127.14,127.09,2.16708516]
[1769177865951,3.41901835,127.14,127.09,2.16708516]
[1769177866867,3.41901835,127.14,127.09,0.05182512]
[1769177871465,3.41901835,127.14,127.09,10.58580368]
[1769177875674,3.41901835,127.14,127.09,3.49470368]
[1769177876777,10.50791835,127.13,127.09,0.05182512]
[1769177881183,3.41901835,127.13,127.09,0.05182512]
[1769177883382,3.24171193,127.15,127.1,5.56407324]
[1769177884882,3.24171193,127.15,127.1,12.65447324]
[1769177886585,3.24171193,127.15,127.11,0.05231081]
[1769177889982,3.24171193,127.15,127.11,7.14231081]
[1769177891687,3.41165999,127.17,127.12,7.0894]
[1769177892193,3.41165999,127.19,127.13,10.4672117]
[1769177892586,3.41165999,127.17,127.11,3.3784117]
[1769177892987,3.41165999,127.17,127.15,0.05007268]
[1769177893590,3.41165999,127.17,127.11,3.3784117]
[1769177893792,3.41165999,127.17,127.12,7.0894]
[1769177893990,3.41165999,127.17,127.12,10.4678117]
[1769177894997,0.05450164,127.16,127.12,10.4678117]
[1769177895898,0.05450164,127.16,127.13,7.0887]
[1769177896101,5.52640984,127.19,127.13,10.51949035]
[1769177896298,5.52640984,127.19,127.13,3.43079035]
[1769177896890,3.41165999,127.19,127.13,3.43079035]
[1769177897292,3.41165999,127.19,127.13,10.51959035]
[1769177897899,3.41165999,127.19,127.14,3.3784117]
[1769177907213,12.61210984,127.19,127.14,3.3784117]
[1769177907617,3.41165999,127.18,127.13,7.14117865]
[1769177908125,2.11474985,127.19,127.14,3.3784117]
[1769177908318,3.41165999,127.2,127.14,3.3784117]
[1769177909212,10.49675999,127.2,127.16,0.05790371]
[1769177911123,3.41165999,127.2,127.16,0.05790371]
[1769177914022,2.11474985,127.21,127.16,3.44205815]
[1769177914624,3.47720582,127.21,127.16,10.52925815]
[1769177914822,3.47720582,127.21,127.16,3.44205815]
[1769177915514,3.47720582,127.21,127.17,7.0862]
[1769177915826,3.47720582,127.21,127.16,3.44205815]
[1769177916023,3.47720582,127.2,127.16,0.05790371]
[1769177916822,0.04984445,127.19,127.16,0.05790371]
[1769177921926,5.64180012,127.19,127.16,0.05790371]
[1769177922228,3.47720582,127.18,127.12,3.38415444]
[1769177923028,3.47720582,127.18,127.13,10.47305444]
[1769177923627,0.0579238,127.17,127.13,10.47305444]
[1769177925027,0.0579238,127.17,127.14,3.38415444]
[1769177925722,0.0579238,127.17,127.14,10.47235444]
[1769177929235,0.0579238,127.17,127.14,3.38415444]
[1769177930631,9.19829804,127.2,127.14,3.38415444]
[1769177931136,9.19829804,127.2,127.14,3.44461507]
[1769177932134,12.67550386,127.2,127.14,3.44461507]
[1769177933838,3.47720582,127.2,127.15,3.38415444]
[1769177935036,3.47720582,127.2,127.15,10.47145444]
[1769177936938,7.0844,127.21,127.16,3.38415444]
[1769177937340,10.56110582,127.22,127.16,12.58455248]
[1769177937541,5.90718916,127.21,127.17,3.38415444]
[1769177937833,10.56110582,127.22,127.17,3.43461371]
[1769177938028,5.9072079,127.21,127.17,3.43461371]
[1769177938225,10.56160582,127.21,127.17,0.05045927]
[1769177939026,5.90818021,127.2,127.17,0.05045927]
[1769177940442,12.99338021,127.2,127.17,0.05045927]
[1769177940644,7.0852,127.2,127.17,0.05045927]
[1769177941343,3.47720582,127.19,127.13,3.38415444]
[1769177941937,7.0866,127.18,127.13,3.38415444]
[1769177942744,0.0540443,127.17,127.13,3.38415444]
[1769177944143,0.0540443,127.17,127.13,10.47295444]
[1769177944343,0.0540443,127.17,127.14,3.53859239]
[1769177947948,3.41965186,127.17,127.12,3.32674184]
[1769177951347,10.50625186,127.17,127.12,3.32674184]
[1769177952651,7.1406443,127.17,127.13,3.32674184]
[1769177957952,3.36560756,127.15,127.09,3.32674184]
[1769177958161,3.36560756,127.13,127.07,3.32674184]
[1769177958846,0.05471115,127.11,127.07,3.32674184]
[1769177965360,10.51051871,127.11,127.05,5.44003988]
[1769177965562,3.42031871,127.11,127.06,3.32674184]
[1769177969361,10.51041871,127.11,127.06,3.32674184]
[1769177971254,7.0906,127.1,127.06,3.32674184]
[1769177974665,7.0915,127.09,127.06,4.184e-05]
[1769177979163,7.0906,127.1,127.06,4.184e-05]
[1769177982166,5.53361675,127.11,127.06,4.184e-05]
[1769177983068,3.28082443,127.1,127.04,3.19777665]
[1769177983258,2.11329804,127.09,127.04,3.19777665]
[1769177983458,3.28082443,127.08,127.02,3.19777665]
[1769177983860,3.33118654,127.08,127.02,3.19777665]
[1769177985073,3.33118654,127.08,127.02,10.29257665]
[1769177986669,3.33118654,127.08,127.03,3.19777665]
[1769177987280,3.33118654,127.08,127.03,10.29217665]
[1769177987572,0.05036211,127.08,127.04,3.19777665]
[1769177990669,5.44448458,127.08,127.02,5.31107469]
[1769177990867,5.44830462,127.08,127.02,3.19777665]
[1769177991973,5.44830462,127.08,127.02,10.29227665]
[1769177992474,5.44830462,127.08,127.02,3.19777665]
[1769177993971,5.44830462,127.08,127.03,7.0944]
[1769177999086,5.44830462,127.08,127.03,10.29217665]
[1769177999282,5.44830462,127.08,127.04,7.0937]
[1769177999576,2.11711808,127.1,127.05,3.19777665]
[1769178000383,5.39794251,127.1,127.05,10.29107665]
[1769178000880,5.39794251,127.1,127.06,0.05370866]
[1769178001275,3.28082443,127.09,127.06,0.05370866]
[1769178011677,3.22179146,127.07,127.03,7.0944]
[1769178012072,3.22179146,127.07,127.01,3.26665886]
[1769178012274,3.22179146,127.07,127.01,10.36175886]
[1769178013180,0.05616396,127.05,127.01,10.36175886]
[1769178013481,3.22179146,127.07,127.02,3.26665886]
[1769178013880,3.22179146,127.07,127.02,3.3264305]
[1769178014978,3.22179146,127.07,127.03,7.0942]
[1769178020896,3.22179146,127.07,127.02,3.3264305]
[1769178021895,2.11711808,127.05,127.02,0.05977164]
[1769178022095,2.11711808,127.03,126.98,3.26665886]
[1769178022294,5.33890954,127.03,126.98,3.26665886]
[1769178022495,3.22179146,127.03,126.98,3.26665886]
[1769178022695,5.33890954,127.05,126.98,3.26665886]
[1769178023698,0.06056362,127.03,126.98,3.26665886]
[1769178023999,0.06056362,127.03,126.99,10.36335886]
[1769178026299,3.28235508,127.03,126.98,7.0972]
[1769178028500,3.28235508,127.03,126.99,7.0966]
[1769178034006,0.06056362,127.03,126.99,10.58967965]
[1769178036108,0.06056362,127.03,127.0,10.58907965]
[1769178036404,2.11711808,127.05,127.0,3.54543854]
[1769178036609,5.63018171,127.05,127.0,3.54543854]